[Event "Skalica Open 2019"]
[Site "Skalica"]
[Date "2019.08.30"]
[Round "8.9"]
[White "Gasa, Patrik"]
[Black "Istona, Martin"]
[Result "1/2-1/2"]
[ECO "A05"]
[WhiteElo "2187"]
[BlackElo "2235"]
[Annotator "NA"]
[PlyCount "23"]
[EventDate "2019.08.25"]
[EventType "swiss"]
[EventCountry "SVK"]
[SourceTitle "playchess.com"]
[Source "ChessBase"]
[SourceQuality "1"]
[TimeControl "40/5400+30:1800+30"]

1. Nf3 {[%emt 0:11:35]} Nf6 {[%emt 0:00:00]} 2. c4 {[%emt 0:00:04]} g6 {[%emt 0:00:13]} 3. b4 {[%emt 0:01:33]} Bg7 {[%emt 0:00:06]} 4. Bb2 {[%emt 0:00:04]} O-O {[%emt 0:00:19]} 5. e3 {[%emt 0:00:38]} c6 {[%emt 0:00:44]} 6. Be2 {[%emt 0:00:55]} d5 {[%emt 0:00:36]} 7. O-O {[%emt 0:00:26]} a5 {[%emt 0:00:49]} 8. cxd5 {[%emt 0:11:46]} Nxd5 {[%emt 0:00:59]} 9. Bxg7 {[%emt 0:01:02]} Kxg7 {[%emt 0:00:07]} 10. bxa5 {[%emt 0:09:15]} Qxa5 {[%emt 0:04:07]} 11. Qb3 {[%emt 0:03:34]} Qb4 {[%emt 0:11:52]} 12. Nc3 {[%emt 0:00:17]} 1/2-1/2

[Event "Skalica Open 2019"]
[Site "Skalica"]
[Date "2019.08.30"]
[Round "8.10"]
[White "Jablonicky, Martin"]
[Black "Kuznetsov, Mikhail V."]
[Result "1-0"]
[ECO "A05"]
[WhiteElo "2343"]
[BlackElo "2261"]
[Annotator "NA"]
[PlyCount "71"]
[EventDate "2019.08.25"]
[EventType "swiss"]
[EventCountry "SVK"]
[SourceTitle "playchess.com"]
[Source "ChessBase"]
[SourceQuality "1"]
[TimeControl "40/5400+30:1800+30"]

1. Nf3 {[%emt 0:05:35]} Nf6 {[%emt 0:02:32]} 2. g3 {[%emt 0:00:06]} g6 {[%emt 0:00:24]} 3. Bg2 {[%emt 0:00:05]} Bg7 {[%emt 0:00:04]} 4. O-O {[%emt 0:00:04]} O-O {[%emt 0:00:33]} 5. d4 {[%emt 0:00:03]} d5 {[%emt 0:00:07]} 6. c4 {[%emt 0:00:11]} dxc4 {[%emt 0:00:28]} 7. Na3 {[%emt 0:01:34]} c3 {[%emt 0:00:05]} 8. bxc3 {[%emt 0:00:09]} c5 {[%emt 0:00:17]} 9. Rb1 {[%emt 0:01:38]} Ne4 {[%emt 0:09:34]} 10. Qc2 {[%emt 0:01:55]} Nd6 {[%emt 0:01:42]} 11. e4 {[%emt 0:01:13]} Qa5 {[%emt 0:03:56]} 12. e5 {[%emt 0:08:03]} Bf5 {[%emt 0:03:36]} 13. Qb3 {[%emt 0:00:15]} Ne4 {[%emt 0:08:38]} 14. Nh4 {[%emt 0:06:08]} Nc6 {[%emt 0:06:48]} 15. Nxf5 {[%emt 0:09:05]} gxf5 {[%emt 0:00:15]} 16. Qxb7 {[%emt 0:00:24]} Rac8 {[%emt 0:01:15]} 17. Bxe4 {[%emt 0:02:52]} fxe4 {[%emt 0:00:36]} 18. Rb5 {[%emt 0:00:01]} Qxc3 {[%emt 0:05:35]} 19. Rxc5 {[%emt 0:01:58]} Na5 {[%emt 0:05:34]} 20. Qxc8 {[%emt 0:28:55]} Rxc8 {[%emt 0:00:11]} 21. Rxc3 {[%emt 0:00:04]} Rxc3 {[%emt 0:00:08]} 22. Bb2 {[%emt 0:00:08]} Rd3 {[%emt 0:05:14]} 23. Rc1 {[%emt 0:01:43]} Bh6 {[%emt 0:00:26]} 24. Rc8+ {[%emt 0:01:03]} Kg7 {[%emt 0:00:03]} 25. Nc2 {[%emt 0:01:09]} Rd1+ {[%emt 0:08:22]} 26. Kg2 {[%emt 0:00:06]} Rd2 {[%emt 0:00:03]} 27. Bc1 {[%emt 0:09:33]} e3 {[%emt 0:01:35]} 28. Nxe3 {[%emt 0:00:02]} Bxe3 {[%emt 0:00:14]} 29. Bxd2 {[%emt 0:00:03]} Bxd2 {[%emt 0:00:04]} 30. d5 Bb4 {[%emt 0:02:22]} 31. f4 {[%emt 0:00:17]} h5 {[%emt 0:05:02]} 32. Kf3 {[%emt 0:01:24]} a6 {[%emt 0:01:37]} 33. g4 {[%emt 0:01:50]} hxg4+ {[%emt 0:01:15]} 34. Kxg4 {[%emt 0:00:02]} Ba3 {[%emt 0:00:26]} 35. Rc7 {[%emt 0:00:36]} Kg6 {[%emt 0:00:49]} 36. Rc6+ {[%emt 0:05:02]} 1-0

[Event "Skalica Open 2019"]
[Site "Skalica"]
[Date "2019.08.30"]
[Round "8.12"]
[White "Bochnicka, Vladimir"]
[Black "Havelka, Ondrej"]
[Result "0-1"]
[ECO "C01"]
[WhiteElo "2193"]
[BlackElo "2112"]
[Annotator "NA"]
[PlyCount "60"]
[EventDate "2019.08.25"]
[EventType "swiss"]
[EventCountry "SVK"]
[SourceTitle "playchess.com"]
[Source "ChessBase"]
[SourceQuality "1"]
[TimeControl "40/5400+30:1800+30"]

1. e4 {[%emt 0:00:00]} e6 {[%emt 0:00:00]} 2. d4 {[%emt 0:00:00]} d5 {[%emt 0:00:00]} 3. exd5 {[%emt 0:00:02]} exd5 {[%emt 0:00:55]} 4. c4 {[%emt 0:00:22]} Bb4+ {[%emt 0:00:06]} 5. Nc3 {[%emt 0:00:09]} Nf6 {[%emt 0:00:15]} 6. Bd3 {[%emt 0:01:17]} O-O {[%emt 0:00:27]} 7. Nge2 {[%emt 0:00:08]} Bg4 {[%emt 0:00:19]} 8. f3 {[%emt 0:05:26]} Bh5 {[%emt 0:01:12]} 9. O-O {[%emt 0:01:28]} dxc4 {[%emt 0:01:56]} 10. Bxc4 {[%emt 0:01:37]} Nc6 {[%emt 0:02:15]} 11. a3 {[%emt 0:02:00]} Ba5 {[%emt 0:00:47]} 12. Be3 {[%emt 0:01:27]} Qd7 {[%emt 0:02:18]} 13. Bf2 {[%emt 0:12:49]} Rad8 {[%emt 0:01:40]} 14. Qc1 {[%emt 0:03:08]} Bb6 {[%emt 0:01:14]} 15. Rd1 {[%emt 0:00:40]} Ne7 {[%emt 0:07:37]} 16. d5 {[%emt 0:18:37]} Bxf2+ {[%emt 0:02:54]} 17. Kxf2 {[%emt 0:01:52]} Bg6 {[%emt 0:01:12]} 18. g4 {[%emt 0:11:03]} h5 {[%emt 0:04:54]} 19. h3 {[%emt 0:01:46]} Nc8 {[%emt 0:01:14]} 20. Qg5 {[%emt 0:09:51]} Qd6 {[%emt 0:05:13]} 21. Kg2 {[%emt 0:03:15]} Rfe8 {[%emt 0:01:25]} 22. Nf4 {[%emt 0:11:41]} Re5 {[%emt 0:02:42]} 23. Qh4 {[%emt 0:00:08]} Nb6 {[%emt 0:09:24]} 24. Bb3 {[%emt 0:01:20]} Rde8 {[%emt 0:01:54]} 25. Nxg6 {[%emt 0:01:19]} Re2+ {[%emt 0:04:26]} 26. Nxe2 {[%emt 0:02:14]} Rxe2+ {[%emt 0:00:01]} 27. Kf1 {[%emt 0:00:20]} Qh2 {[%emt 0:00:14]} 28. Nf4 {[%emt 0:01:48]} Rxb2 {[%emt 0:00:15]} 29. Rd2 {[%emt 0:02:16]} Rxd2 {[%emt 0:00:16]} 30. Ke1 {[%emt 0:00:12]} Rb2 {[%emt 0:04:28]} 0-1

[Event "Skalica Open 2019"]
[Site "Skalica"]
[Date "2019.08.30"]
[Round "8.13"]
[White "Kalisky, Vladimir"]
[Black "Londin, Simon"]
[Result "1-0"]
[ECO "A04"]
[WhiteElo "2179"]
[BlackElo "2038"]
[Annotator "NA"]
[PlyCount "83"]
[EventDate "2019.08.25"]
[EventType "swiss"]
[EventCountry "SVK"]
[SourceTitle "playchess.com"]
[Source "ChessBase"]
[SourceQuality "1"]
[TimeControl "40/5400+30:1800+30"]

1. Nf3 {[%emt 0:00:00]} c5 {[%emt 0:12:10]} 2. g3 {[%emt 0:00:34]} Nc6 {[%emt 0:00:10]} 3. c4 {[%emt 0:00:33]} e5 {[%emt 0:00:07]} 4. Nc3 {[%emt 0:00:38]} Nge7 {[%emt 0:00:30]} 5. Bg2 {[%emt 0:00:49]} d6 {[%emt 0:01:54]} 6. d3 {[%emt 0:00:48]} g6 {[%emt 0:00:43]} 7. O-O {[%emt 0:01:35]} Bg7 {[%emt 0:00:03]} 8. Rb1 {[%emt 0:03:17]} O-O {[%emt 0:00:16]} 9. a3 {[%emt 0:00:18]} f5 {[%emt 0:01:04]} 10. Ne1 {[%emt 0:01:19]} Be6 {[%emt 0:14:28]} 11. Nd5 {[%emt 0:01:47]} h6 {[%emt 0:00:58]} 12. Nc2 {[%emt 0:02:32]} g5 {[%emt 0:03:04]} 13. b4 {[%emt 0:01:29]} Rb8 {[%emt 0:04:21]} 14. e3 {[%emt 0:02:54]} Qd7 {[%emt 0:01:02]} 15. b5 {[%emt 0:02:17]} Nd8 {[%emt 0:00:37]} 16. f4 {[%emt 0:05:25]} Nxd5 {[%emt 0:05:10]} 17. cxd5 {[%emt 0:01:28]} Bf7 {[%emt 0:00:01]} 18. a4 {[%emt 0:02:11]} Bg6 {[%emt 0:02:06]} 19. Na3 {[%emt 0:01:09]} Nf7 {[%emt 0:01:23]} 20. Nc4 {[%emt 0:01:10]} Rbe8 {[%emt 0:10:09]} 21. Bb2 {[%emt 0:07:32]} Re7 {[%emt 0:02:22]} 22. Bf3 {[%emt 0:10:40]} exf4 {[%emt 0:10:06]} 23. Bxg7 {[%emt 0:04:54]} Kxg7 {[%emt 0:00:10]} 24. exf4 {[%emt 0:00:48]} Rfe8 {[%emt 0:06:39]} 25. Qd2 {[%emt 0:06:44]} g4 {[%emt 0:02:07]} 26. Bd1 {[%emt 0:01:38]} Qd8 {[%emt 0:00:22]} 27. a5 {[%emt 0:00:29]} Rf8 {[%emt 0:03:03]} 28. Ba4 {[%emt 0:01:45]} h5 {[%emt 0:01:51]} 29. Qc3+ {[%emt 0:02:44]} Kh7 {[%emt 0:03:26]} 30. b6 {[%emt 0:00:43]} a6 {[%emt 0:00:11]} 31. Rbe1 {[%emt 0:00:39]} Nh6 {[%emt 0:02:55]} 32. Rxe7+ {[%emt 0:00:50]} Qxe7 {[%emt 0:00:01]} 33. Re1 {[%emt 0:00:12]} Qd8 {[%emt 0:02:58]} 34. Re6 {[%emt 0:00:10]} Nf7 {[%emt 0:01:25]} 35. Kf2 {[%emt 0:07:51]} h4 {[%emt 0:01:56]} 36. Qf6 {[%emt 0:02:44]} hxg3+ {[%emt 0:00:07]} 37. hxg3 {[%emt 0:00:07]} Qxf6 {[%emt 0:00:14]} 38. Rxf6 {[%emt 0:00:02]} Rd8 {[%emt 0:00:54]} 39. Re6 {[%emt 0:00:14]} Kg7 {[%emt 0:03:13]} 40. Re7 {[%emt 0:00:21]} Rb8 {[%emt 0:00:22]} 41. Bc6 {[%emt 0:32:04]} bxc6 {[%emt 0:31:29]} 42. dxc6 {[%emt 0:00:14]} 1-0

[Event "Skalica Open 2019"]
[Site "Skalica"]
[Date "2019.08.30"]
[Round "8.14"]
[White "Jun, Rudolf Jr."]
[Black "Kantorik, Marian"]
[Result "1-0"]
[ECO "C41"]
[WhiteElo "2114"]
[BlackElo "2164"]
[Annotator "NA"]
[PlyCount "108"]
[EventDate "2019.08.25"]
[EventType "swiss"]
[EventCountry "SVK"]
[SourceTitle "playchess.com"]
[Source "ChessBase"]
[SourceQuality "1"]
[TimeControl "40/5400+30:1800+30"]

1. e4 {[%emt 0:00:48]} d6 {[%emt 0:00:35]} 2. d4 {[%emt 0:01:13]} Nf6 {[%emt 0:00:13]} 3. Nc3 {[%emt 0:00:39]} e5 {[%emt 0:00:08]} 4. Nf3 {[%emt 0:01:13]} Nbd7 {[%emt 0:00:15]} 5. Bc4 {[%emt 0:06:24]} Be7 {[%emt 0:00:19]} 6. O-O {[%emt 0:02:32]} c6 {[%emt 0:01:07]} 7. Bb3 {[%emt 0:05:56]} h6 {[%emt 0:01:45]} 8. a4 {[%emt 0:03:10]} Qc7 {[%emt 0:00:26]} 9. Nh4 {[%emt 0:08:21]} exd4 {[%emt 0:07:28]} 10. Qxd4 {[%emt 0:00:41]} Nc5 {[%emt 0:00:16]} 11. Ba2 {[%emt 0:01:08]} Be6 {[%emt 0:00:37]} 12. b4 {[%emt 0:02:23]} Bxa2 {[%emt 0:01:14]} 13. Rxa2 {[%emt 0:00:37]} Ne6 {[%emt 0:00:07]} 14. Qd3 {[%emt 0:01:23]} g6 {[%emt 0:01:07]} 15. f4 {[%emt 0:08:09]} Ng4 {[%emt 0:07:29]} 16. Nf3 {[%emt 0:02:23]} O-O-O {[%emt 0:11:05]} 17. h3 {[%emt 0:00:39]} Nf6 {[%emt 0:00:09]} 18. Be3 {[%emt 0:04:53]} d5 {[%emt 0:02:38]} 19. exd5 {[%emt 0:01:26]} Nxd5 {[%emt 0:01:40]} 20. Nxd5 {[%emt 0:00:16]} Rxd5 {[%emt 0:00:31]} 21. Qc4 {[%emt 0:00:24]} Kb8 {[%emt 0:02:48]} 22. Ne5 {[%emt 0:01:24]} Bf6 {[%emt 0:02:05]} 23. b5 {[%emt 0:03:16]} Bxe5 {[%emt 0:01:26]} 24. b6 {[%emt 0:01:26]} axb6 {[%emt 0:01:16]} 25. fxe5 {[%emt 0:00:08]} Rhd8 {[%emt 0:05:27]} 26. Rb2 {[%emt 0:01:20]} Qxe5 {[%emt 0:02:13]} 27. Rb3 {[%emt 0:00:33]} b5 {[%emt 0:19:16]} 28. axb5 {[%emt 0:00:42]} cxb5 {[%emt 0:00:39]} 29. Qg4 {[%emt 0:00:32]} h5 {[%emt 0:04:11]} 30. Qe2 {[%emt 0:06:03]} f5 {[%emt 0:08:48]} 31. c4 {[%emt 0:09:05]} bxc4 {[%emt 0:01:47]} 32. Ra3 {[%emt 0:01:24]} Nc7 {[%emt 0:04:26]} 33. Rfa1 {[%emt 0:04:55]} f4 {[%emt 0:02:41]} 34. Ba7+ {[%emt 0:00:52]} Kc8 {[%emt 0:00:09]} 35. Qc2 {[%emt 0:01:00]} f3 {[%emt 0:02:09]} 36. Bb6 {[%emt 0:01:43]} Qe2 {[%emt 0:02:30]} 37. Ra8+ {[%emt 0:04:03]} Kd7 {[%emt 0:01:15]} 38. Rxd8+ {[%emt 0:02:28]} Kxd8 {[%emt 0:00:06]} 39. Qxg6 {[%emt 0:00:16]} Qxg2+ {[%emt 0:01:19]} 40. Qxg2 {[%emt 0:00:06]} fxg2 {[%emt 0:00:07]} 41. Rc1 {[%emt 0:30:18]} Rb5 {[%emt 0:30:32]} 42. Bxc7+ {[%emt 0:01:19]} Kxc7 {[%emt 0:00:07]} 43. Rxc4+ {[%emt 0:00:05]} Kd6 {[%emt 0:00:32]} 44. Kxg2 {[%emt 0:00:04]} Rc5 {[%emt 0:01:03]} 45. Rb4 {[%emt 0:00:49]} b5 {[%emt 0:00:08]} 46. Kg3 {[%emt 0:00:14]} Rc3+ {[%emt 0:00:52]} 47. Kg2 {[%emt 0:00:04]} Rc5 {[%emt 0:00:23]} 48. Kg3 {[%emt 0:00:16]} Rd5 {[%emt 0:00:46]} 49. Rb1 {[%emt 0:00:32]} Kc5 {[%emt 0:00:20]} 50. Rc1+ {[%emt 0:00:03]} Kb6 {[%emt 0:00:03]} 51. Rb1 {[%emt 0:00:15]} Rd4 {[%emt 0:00:09]} 52. Kf3 {[%emt 0:00:14]} b4 {[%emt 0:00:08]} 53. Ke3 {[%emt 0:00:28]} Rc4 {[%emt 0:01:44]} 54. Kd2 {[%emt 0:00:24]} Kb5 {[%emt 0:00:32]} 1-0

[Event "Skalica Open 2019"]
[Site "Skalica"]
[Date "2019.08.30"]
[Round "8.15"]
[White "Sefcik, Marek"]
[Black "Bilczewski, Kacper"]
[Result "0-1"]
[ECO "C00"]
[WhiteElo "2024"]
[BlackElo "2116"]
[Annotator "NA"]
[PlyCount "52"]
[EventDate "2019.08.25"]
[EventType "swiss"]
[EventCountry "SVK"]
[SourceTitle "playchess.com"]
[Source "ChessBase"]
[SourceQuality "1"]
[TimeControl "40/5400+30:1800+30"]

1. e4 {[%emt 0:00:00]} e6 {[%emt 0:00:00]} 2. d3 {[%emt 0:01:15]} b6 {[%emt 0:00:00]} 3. Nf3 {[%emt 0:01:04]} Bb7 {[%emt 0:00:00]} 4. g3 {[%emt 0:00:27]} d5 {[%emt 0:00:20]} 5. Nbd2 {[%emt 0:01:09]} Nf6 {[%emt 0:00:30]} 6. e5 {[%emt 0:01:19]} Nfd7 {[%emt 0:00:04]} 7. Bg2 {[%emt 0:00:38]} c5 {[%emt 0:00:03]} 8. O-O {[%emt 0:00:25]} Nc6 {[%emt 0:00:15]} 9. Re1 {[%emt 0:00:23]} Qc7 {[%emt 0:00:33]} 10. Qe2 {[%emt 0:00:44]} Be7 {[%emt 0:01:11]} 11. Nf1 {[%emt 0:01:42]} O-O-O {[%emt 0:00:28]} 12. h4 {[%emt 0:03:46]} h6 {[%emt 0:00:07]} 13. Bf4 {[%emt 0:03:45]} Rdg8 {[%emt 0:00:18]} 14. g4 {[%emt 0:16:34]} Bxh4 {[%emt 0:10:30]} 15. Nxh4 {[%emt 0:04:18]} g5 {[%emt 0:00:04]} 16. Bg3 {[%emt 0:21:31]} gxh4 {[%emt 0:00:05]} 17. Bxh4 {[%emt 0:00:47]} Qxe5 {[%emt 0:05:53]} 18. Qd2 {[%emt 0:20:25]} Qd4 {[%emt 0:03:23]} 19. Nh2 {[%emt 0:01:09]} Nce5 {[%emt 0:15:07]} 20. Bg3 {[%emt 0:03:46]} Nxg4 {[%emt 0:00:37]} 21. Nf3 {[%emt 0:04:11]} Qf6 {[%emt 0:01:42]} 22. d4 {[%emt 0:00:16]} h5 {[%emt 0:04:55]} 23. dxc5 {[%emt 0:08:09]} Nxc5 {[%emt 0:05:51]} 24. Ne5 {[%emt 0:03:19]} Nxe5 {[%emt 0:00:09]} 25. Rxe5 {[%emt 0:00:20]} h4 {[%emt 0:00:57]} 26. Bh2 {[%emt 0:00:47]} h3 {[%emt 0:00:31]} 0-1

[Event "Skalica Open 2019"]
[Site "Skalica"]
[Date "2019.08.30"]
[Round "8.17"]
[White "Kapusta, Petr"]
[Black "Lhotska, Anna"]
[Result "1-0"]
[ECO "B59"]
[WhiteElo "2157"]
[BlackElo "1966"]
[Annotator "NA"]
[PlyCount "65"]
[EventDate "2019.08.25"]
[EventType "swiss"]
[EventCountry "SVK"]
[SourceTitle "playchess.com"]
[Source "ChessBase"]
[SourceQuality "1"]
[TimeControl "40/5400+30:1800+30"]

1. e4 {[%emt 0:00:00]} c5 {[%emt 0:00:00]} 2. Nf3 {[%emt 0:00:00]} d6 {[%emt 0:00:00]} 3. d4 {[%emt 0:00:00]} cxd4 {[%emt 0:00:00]} 4. Nxd4 {[%emt 0:00:00]} Nf6 {[%emt 0:00:00]} 5. Nc3 {[%emt 0:00:00]} Nc6 {[%emt 0:00:24]} 6. Be2 {[%emt 0:00:35]} e5 {[%emt 0:03:58]} 7. Nb3 {[%emt 0:01:02]} Be6 {[%emt 0:00:46]} 8. O-O {[%emt 0:00:08]} Be7 {[%emt 0:00:17]} 9. Kh1 {[%emt 0:00:09]} O-O {[%emt 0:01:16]} 10. f4 {[%emt 0:00:07]} exf4 {[%emt 0:04:40]} 11. Bxf4 {[%emt 0:00:08]} d5 {[%emt 0:01:23]} 12. e5 {[%emt 0:04:38]} Ne4 {[%emt 0:01:40]} 13. Bd3 {[%emt 0:01:59]} Nxc3 {[%emt 0:04:56]} 14. bxc3 {[%emt 0:00:32]} h6 {[%emt 0:25:21]} 15. Nd4 {[%emt 0:07:24]} Nxd4 {[%emt 0:00:55]} 16. cxd4 {[%emt 0:00:07]} Qd7 {[%emt 0:01:55]} 17. Qd2 {[%emt 0:01:39]} f5 {[%emt 0:11:46]} 18. Bxh6 {[%emt 0:06:10]} gxh6 {[%emt 0:04:56]} 19. Qxh6 {[%emt 0:00:08]} Rf7 {[%emt 0:00:42]} 20. Rf3 {[%emt 0:05:03]} Rh7 {[%emt 0:02:06]} 21. Qe3 {[%emt 0:05:54]} Rf8 {[%emt 0:01:43]} 22. g4 {[%emt 0:04:40]} Rg7 {[%emt 0:12:28]} 23. gxf5 {[%emt 0:02:12]} Bxf5 {[%emt 0:00:24]} 24. Rxf5 {[%emt 0:00:40]} Rxf5 {[%emt 0:08:05]} 25. e6 {[%emt 0:00:34]} Rf3 {[%emt 0:00:30]} 26. Qxf3 {[%emt 0:00:52]} Qxe6 {[%emt 0:00:11]} 27. Bf5 {[%emt 0:02:09]} Qd6 {[%emt 0:01:16]} 28. Re1 {[%emt 0:04:10]} Rg5 {[%emt 0:04:05]} 29. Qh3 {[%emt 0:14:25]} Qf6 {[%emt 0:03:55]} 30. Be6+ {[%emt 0:00:23]} Kg7 {[%emt 0:00:44]} 31. Rf1 {[%emt 0:00:42]} Qxd4 {[%emt 0:00:53]} 32. Rf7+ {[%emt 0:00:14]} Kg6 {[%emt 0:00:07]} 33. Qh7# {[%emt 0:00:08]} 1-0

[Event "Skalica Open 2019"]
[Site "Skalica"]
[Date "2019.08.30"]
[Round "8.18"]
[White "Gresova, Zuzana"]
[Black "Benes, Miroslav"]
[Result "1-0"]
[ECO "A59"]
[WhiteElo "2008"]
[BlackElo "2107"]
[Annotator "NA"]
[PlyCount "123"]
[EventDate "2019.08.25"]
[EventType "swiss"]
[EventCountry "SVK"]
[SourceTitle "playchess.com"]
[Source "ChessBase"]
[SourceQuality "1"]
[TimeControl "40/5400+30:1800+30"]

1. d4 {[%emt 0:00:00]} Nf6 {[%emt 0:00:00]} 2. c4 {[%emt 0:00:00]} c5 {[%emt 0:00:00]} 3. d5 {[%emt 0:00:00]} b5 {[%emt 0:00:05]} 4. cxb5 {[%emt 0:00:11]} a6 {[%emt 0:00:05]} 5. bxa6 {[%emt 0:00:30]} g6 {[%emt 0:00:06]} 6. Nc3 {[%emt 0:00:42]} Bxa6 {[%emt 0:00:08]} 7. e4 {[%emt 0:01:20]} Bxf1 {[%emt 0:00:10]} 8. Kxf1 {[%emt 0:00:07]} d6 {[%emt 0:00:04]} 9. Nf3 {[%emt 0:01:01]} Bg7 {[%emt 0:00:07]} 10. g3 {[%emt 0:00:14]} O-O {[%emt 0:00:08]} 11. Kg2 {[%emt 0:00:36]} Qb6 {[%emt 0:00:05]} 12. a4 {[%emt 0:04:56]} Na6 {[%emt 0:00:42]} 13. Qe2 {[%emt 0:05:03]} Nb4 {[%emt 0:01:02]} 14. Nb5 {[%emt 0:03:47]} Rfb8 {[%emt 0:00:25]} 15. Ra3 {[%emt 0:02:29]} Ne8 {[%emt 0:00:54]} 16. Nd2 {[%emt 0:05:32]} Nc7 {[%emt 0:06:03]} 17. Nc4 {[%emt 0:02:11]} Qb7 {[%emt 0:00:01]} 18. Nxc7 {[%emt 0:01:55]} Qxc7 {[%emt 0:00:02]} 19. a5 {[%emt 0:06:13]} Re8 {[%emt 0:19:17]} 20. Rd1 {[%emt 0:05:57]} Rad8 {[%emt 0:04:37]} 21. Bg5 {[%emt 0:03:31]} h6 {[%emt 0:00:11]} 22. Be3 {[%emt 0:02:48]} e6 {[%emt 0:04:39]} 23. dxe6 {[%emt 0:05:06]} fxe6 {[%emt 0:04:26]} 24. Bf4 {[%emt 0:13:42]} Bf8 {[%emt 0:04:12]} 25. Qg4 {[%emt 0:04:30]} Kh7 {[%emt 0:06:42]} 26. Qh4 {[%emt 0:04:57]} Nc2 {[%emt 0:13:34]} 27. Rc3 {[%emt 0:05:46]} Nd4 {[%emt 0:00:41]} 28. Ne3 {[%emt 0:02:28]} Qg7 {[%emt 0:05:00]} 29. Bg5 {[%emt 0:03:59]} Be7 {[%emt 0:09:48]} 30. f4 {[%emt 0:01:16]} Rb8 {[%emt 0:09:50]} 31. Rd2 {[%emt 0:02:00]} Bxg5 {[%emt 0:03:11]} 32. fxg5 {[%emt 0:01:10]} Rf8 {[%emt 0:00:03]} 33. Ng4 {[%emt 0:07:47]} h5 {[%emt 0:00:43]} 34. Nf6+ {[%emt 0:00:22]} Kh8 {[%emt 0:00:01]} 35. g4 {[%emt 0:01:00]} Rb4 {[%emt 0:00:11]} 36. gxh5 {[%emt 0:01:26]} Nf5 {[%emt 0:00:32]} 37. Qh3 {[%emt 0:00:49]} Rxf6 {[%emt 0:03:52]} 38. gxf6 {[%emt 0:02:30]} Qxf6 {[%emt 0:00:25]} 39. hxg6+ {[%emt 0:00:32]} Nh4+ {[%emt 0:00:24]} 40. Qxh4+ {[%emt 0:00:59]} Qxh4 {[%emt 0:00:15]} 41. Rh3 {[%emt 0:30:20]} Qxh3+ {[%emt 0:36:00]} 42. Kxh3 {[%emt 0:00:00]} Kg7 {[%emt 0:00:00]} 43. Rxd6 {[%emt 0:00:00]} Rxe4 {[%emt 0:00:00]} 44. a6 {[%emt 0:00:00]} Kxg6 {[%emt 0:00:00]} 45. Rc6 {[%emt 0:00:00]} Ra4 {[%emt 0:00:00]} 46. Rxe6+ {[%emt 0:00:00]} Kf5 {[%emt 0:00:00]} 47. Rc6 {[%emt 0:00:00]} c4 {[%emt 0:00:00]} 48. Kg3 {[%emt 0:00:00]} Ke4 {[%emt 0:00:00]} 49. h4 {[%emt 0:00:00]} Kd5 {[%emt 0:00:00]} 50. Rf6 {[%emt 0:00:00]} Ra2 {[%emt 0:00:00]} 51. h5 {[%emt 0:00:00]} Rxb2 {[%emt 0:00:00]} 52. h6 {[%emt 0:00:00]} Rb8 {[%emt 0:00:00]} 53. h7 {[%emt 0:00:00]} c3 {[%emt 0:00:00]} 54. a7 {[%emt 0:00:02]} Ra8 {[%emt 0:00:00]} 55. Rh6 {[%emt 0:02:42]} Rh8 {[%emt 0:00:00]} 56. Rg6 {[%emt 0:02:48]} Ra8 {[%emt 0:02:17]} 57. Rg8 {[%emt 0:01:16]} c2 {[%emt 0:00:18]} 58. h8=Q {[%emt 0:00:40]} c1=Q {[%emt 0:00:19]} 59. Qh5+ {[%emt 0:00:59]} Kc4 {[%emt 0:01:42]} 60. Qg4+ {[%emt 0:01:06]} Kb3 {[%emt 0:01:47]} 61. Rb8+ {[%emt 0:00:38]} Ka2 {[%emt 0:00:19]} 62. Qe2+ {[%emt 0:00:30]} 1-0

[Event "Skalica Open 2019"]
[Site "Skalica"]
[Date "2019.08.30"]
[Round "8.19"]
[White "Kovarikova, Maria"]
[Black "Kuna, Martin"]
[Result "1/2-1/2"]
[ECO "C10"]
[WhiteElo "1854"]
[BlackElo "1969"]
[Annotator "NA"]
[PlyCount "101"]
[EventDate "2019.08.25"]
[EventType "swiss"]
[EventCountry "SVK"]
[SourceTitle "playchess.com"]
[Source "ChessBase"]
[SourceQuality "1"]
[TimeControl "40/5400+30:1800+30"]

1. e4 {[%emt 0:00:00]} e6 {[%emt 0:00:00]} 2. d4 {[%emt 0:00:00]} d5 {[%emt 0:00:02]} 3. Nd2 {[%emt 0:00:00]} dxe4 {[%emt 0:00:40]} 4. Nxe4 {[%emt 0:00:00]} Nd7 {[%emt 0:00:09]} 5. Nf3 {[%emt 0:02:07]} Ngf6 {[%emt 0:00:30]} 6. Nxf6+ {[%emt 0:00:52]} Nxf6 {[%emt 0:00:09]} 7. c3 {[%emt 0:00:37]} c5 {[%emt 0:01:35]} 8. Bd3 {[%emt 0:22:58]} Be7 {[%emt 0:03:30]} 9. O-O {[%emt 0:01:12]} O-O {[%emt 0:00:16]} 10. Qc2 {[%emt 0:00:42]} h6 {[%emt 0:06:23]} 11. Qe2 {[%emt 0:08:19]} b6 {[%emt 0:04:02]} 12. dxc5 {[%emt 0:01:04]} Bxc5 {[%emt 0:00:09]} 13. Bf4 {[%emt 0:06:15]} Bb7 {[%emt 0:00:49]} 14. Rad1 {[%emt 0:01:32]} Qc8 {[%emt 0:00:21]} 15. Bb1 {[%emt 0:00:41]} Qc6 {[%emt 0:03:32]} 16. Rfe1 {[%emt 0:10:42]} Rfd8 {[%emt 0:20:15]} 17. Rxd8+ {[%emt 0:13:36]} Rxd8 {[%emt 0:04:07]} 18. h3 {[%emt 0:09:54]} Qa4 {[%emt 0:23:20]} 19. Be5 {[%emt 0:03:02]} Ba6 {[%emt 0:00:09]} 20. Qc2 {[%emt 0:07:47]} Qxc2 {[%emt 0:00:35]} 21. Bxc2 {[%emt 0:00:05]} Bb7 {[%emt 0:02:46]} 22. b4 {[%emt 0:05:33]} Be7 {[%emt 0:03:31]} 23. Nd4 {[%emt 0:00:23]} Rc8 {[%emt 0:06:03]} 24. Bb3 {[%emt 0:02:24]} Nd5 {[%emt 0:02:38]} 25. a3 {[%emt 0:01:52]} Rd8 {[%emt 0:16:28]} 26. c4 {[%emt 0:00:37]} Nf6 {[%emt 0:00:09]} 27. Nb5 {[%emt 0:00:41]} Rd3 {[%emt 0:00:39]} 28. Bc2 {[%emt 0:00:21]} Rd2 {[%emt 0:00:05]} 29. Bb1 {[%emt 0:00:29]} a5 {[%emt 0:00:36]} 30. Bf4 {[%emt 0:00:41]} Rb2 {[%emt 0:00:52]} 31. Be5 {[%emt 0:00:18]} Rd2 {[%emt 0:00:20]} 32. Bc3 {[%emt 0:00:09]} Rd8 {[%emt 0:00:45]} 33. bxa5 {[%emt 0:00:09]} bxa5 {[%emt 0:00:25]} 34. Bxa5 {[%emt 0:00:05]} Ra8 {[%emt 0:00:13]} 35. Bb4 {[%emt 0:00:09]} Bxb4 {[%emt 0:00:42]} 36. axb4 {[%emt 0:00:04]} Ra4 {[%emt 0:00:10]} 37. Rd1 {[%emt 0:00:50]} g6 {[%emt 0:00:01]} 38. Rd8+ {[%emt 0:01:34]} Kg7 {[%emt 0:00:05]} 39. Rb8 {[%emt 0:00:21]} Rxb4 {[%emt 0:01:28]} 40. Bxg6 {[%emt 0:01:12]} Rxc4 {[%emt 0:01:00]} 41. Bxf7 {[%emt 0:30:38]} Rc1+ {[%emt 0:02:29]} 42. Kh2 {[%emt 0:00:00]} Bxg2 {[%emt 0:00:06]} 43. Bxe6 {[%emt 0:00:00]} Bc6 {[%emt 0:04:57]} 44. Nd4 {[%emt 0:00:00]} Be4 {[%emt 0:09:12]} 45. f3 {[%emt 0:00:00]} Bd3 {[%emt 0:00:06]} 46. f4 {[%emt 0:00:00]} Nh5 {[%emt 0:03:04]} 47. f5 {[%emt 0:00:00]} Be4 {[%emt 0:02:16]} 48. Rg8+ {[%emt 0:00:00]} Kf6 {[%emt 0:00:20]} 49. Rg1 {[%emt 0:00:00]} Rxg1 {[%emt 0:00:30]} 50. Kxg1 {[%emt 0:00:00]} Ng7 {[%emt 0:00:05]} 51. Kf2 {[%emt 0:00:00]} 1/2-1/2